[Event "*** Titled Tuesday Blitz"]
[Site "Chess.com"]
[Date "2020.04.14"]
[Round "5"]
[White "AliKa2810"]
[Black "LittlePeasant"]
[Result "0-1"]
[WhiteElo "2621"]
[BlackElo "2822"]
[TimeControl "180+1"]
[EndTime "10:52:00 PDT"]
[Termination "LittlePeasant won on time"]

1. d4 {[%clk 0:03:00.9]} 1... Nf6 {[%clk 0:02:59.7]} 2. c4 {[%clk 0:03:01.1]}
2... c5 {[%clk 0:02:58.9]} 3. d5 {[%clk 0:03:00.4]} 3... b5 {[%clk 0:02:59.2]}
4. cxb5 {[%clk 0:03:00.8]} 4... a6 {[%clk 0:02:59.8]} 5. bxa6 {[%clk 0:03:01.2]}
5... Bxa6 {[%clk 0:03:00.7]} 6. Nc3 {[%clk 0:03:00]} 6... g6 {[%clk 0:03:01.3]}
7. Nf3 {[%clk 0:03:00.1]} 7... d6 {[%clk 0:03:01.4]} 8. e4 {[%clk 0:02:59.8]}
8... Bxf1 {[%clk 0:03:02.3]} 9. Kxf1 {[%clk 0:03:00.5]} 9... Bg7 {[%clk
0:03:02.9]} 10. g3 {[%clk 0:03:01.2]} 10... O-O {[%clk 0:03:02.9]} 11. Kg2
{[%clk 0:03:01.9]} 11... Nbd7 {[%clk 0:03:03.8]} 12. a4 {[%clk 0:03:00.7]} 12...
Ra6 {[%clk 0:03:03.9]} 13. Qc2 {[%clk 0:02:50.2]} 13... Qa8 {[%clk 0:03:02.9]}
14. Nb5 {[%clk 0:02:50.4]} 14... Qb7 {[%clk 0:03:00.1]} 15. Bd2 {[%clk
0:02:36.7]} 15... e6 {[%clk 0:02:56.9]} 16. dxe6 {[%clk 0:02:36.2]} 16... fxe6
{[%clk 0:02:56.5]} 17. Rhe1 {[%clk 0:02:27.5]} 17... d5 {[%clk 0:02:53.1]} 18.
exd5 {[%clk 0:02:11.5]} 18... exd5 {[%clk 0:02:54]} 19. Re7 {[%clk 0:02:08.3]}
19... Ne4 {[%clk 0:02:46.1]} 20. Re1 {[%clk 0:01:20.1]} 20... Raf6 {[%clk
0:02:26.9]} 21. Bf4 {[%clk 0:00:57.1]} 21... Qc6 {[%clk 0:01:26.7]} 22. Kg1
{[%clk 0:00:36.7]} 22... h6 {[%clk 0:01:09.2]} 23. Nd2 {[%clk 0:00:36.3]} 23...
Nxf2 {[%clk 0:00:49.8]} 24. Kxf2 {[%clk 0:00:34.9]} 24... g5 {[%clk 0:00:50.4]}
25. Nf3 {[%clk 0:00:28.1]} 25... gxf4 {[%clk 0:00:35.3]} 26. g4 {[%clk
0:00:28.4]} 26... R6f7 {[%clk 0:00:35.6]} 27. Rxf7 {[%clk 0:00:23.5]} 27... Rxf7
{[%clk 0:00:33.5]} 28. Re8+ {[%clk 0:00:23.5]} 28... Nf8 {[%clk 0:00:32.5]} 29.
Qe2 {[%clk 0:00:21.4]} 29... c4 {[%clk 0:00:21.7]} 30. Kg2 {[%clk 0:00:20.6]}
30... Qc5 {[%clk 0:00:20.1]} 31. Qe6 {[%clk 0:00:16.5]} 31... d4 {[%clk
0:00:18.1]} 32. Nd6 {[%clk 0:00:06.1]} 32... Qc7 {[%clk 0:00:03.8]} 33. Nxf7
{[%clk 0:00:06.2]} 33... Qxf7 {[%clk 0:00:04.4]} 34. Qxf7+ {[%clk 0:00:06.9]}
34... Kxf7 {[%clk 0:00:05.3]} 35. Rd8 {[%clk 0:00:06.5]} 35... Ne6 {[%clk
0:00:04.3]} 36. Rd7+ {[%clk 0:00:05.7]} 36... Ke8 {[%clk 0:00:04.2]} 37. Rd5
{[%clk 0:00:05.8]} 37... c3 {[%clk 0:00:04]} 38. bxc3 {[%clk 0:00:05.4]} 38...
dxc3 {[%clk 0:00:04.9]} 39. Rd6 {[%clk 0:00:04.1]} 39... Ke7 {[%clk 0:00:04.4]}
40. Rc6 {[%clk 0:00:04.5]} 40... Kd7 {[%clk 0:00:05.3]} 41. Rc4 {[%clk 0:00:04]}
41... Kd6 {[%clk 0:00:05.9]} 42. Kf2 {[%clk 0:00:03.8]} 42... Kd5 {[%clk
0:00:06.4]} 43. Rc8 {[%clk 0:00:04.2]} 43... Nc5 {[%clk 0:00:06.9]} 44. Ne1
{[%clk 0:00:03.9]} 44... Ke4 {[%clk 0:00:05.4]} 45. Re8+ {[%clk 0:00:01.6]}
45... Be5 {[%clk 0:00:04.9]} 46. Rc8 {[%clk 0:00:01.9]} 46... Bd4+ {[%clk
0:00:04.9]} 47. Ke2 {[%clk 0:00:02.2]} 47... f3+ {[%clk 0:00:04.2]} 48. Kf1
{[%clk 0:00:01.6]} 48... f2 {[%clk 0:00:03.9]} 49. Re8+ {[%clk 0:00:01.7]} 49...
Kd5 {[%clk 0:00:03.8]} 50. Nc2 {[%clk 0:00:01.7]} 50... Kc4 {[%clk 0:00:04.1]}
51. Rd8 {[%clk 0:00:01.6]} 51... Ne6 {[%clk 0:00:01.8]} 52. Rc8+ {[%clk
0:00:01.9]} 52... Kd3 {[%clk 0:00:02.1]} 53. Nb4+ {[%clk 0:00:02.1]} 53... Kd2
{[%clk 0:00:01.9]} 54. Rc6 {[%clk 0:00:02]} 54... Bc5 {[%clk 0:00:02.2]} 55.
Rxe6 {[%clk 0:00:01.6]} 55... Bxb4 {[%clk 0:00:02.5]} 56. Re2+ {[%clk
0:00:01.1]} 56... Kd3 {[%clk 0:00:02.8]} 57. Kxf2 {[%clk 0:00:01.1]} 57... Bc5+
{[%clk 0:00:03.7]} 0-1

[Event "*** Titled Tuesday Blitz"]
[Site "Chess.com"]
[Date "2020.04.14"]
[Round "5"]
[White "Rsnr"]
[Black "Grischuk"]
[Result "0-1"]
[WhiteElo "2871"]
[BlackElo "3099"]
[TimeControl "180+1"]
[EndTime "10:52:02 PDT"]
[Termination "Grischuk won by resignation"]

1. d4 {[%clk 0:03:00.9]} 1... Nf6 {[%clk 0:02:41]} 2. c4 {[%clk 0:03:01.3]} 2...
g6 {[%clk 0:02:41]} 3. g3 {[%clk 0:03:01.3]} 3... Bg7 {[%clk 0:02:40]} 4. Bg2
{[%clk 0:03:01.7]} 4... O-O {[%clk 0:02:40.2]} 5. Nc3 {[%clk 0:03:02]} 5... d6
{[%clk 0:02:40.3]} 6. Nf3 {[%clk 0:03:02.4]} 6... Nbd7 {[%clk 0:02:40.5]} 7. O-O
{[%clk 0:03:02.9]} 7... e5 {[%clk 0:02:41.2]} 8. h3 {[%clk 0:03:03.1]} 8... Re8
{[%clk 0:02:39.3]} 9. e4 {[%clk 0:03:03.4]} 9... exd4 {[%clk 0:02:39.5]} 10.
Nxd4 {[%clk 0:03:04.3]} 10... Nc5 {[%clk 0:02:39.9]} 11. Re1 {[%clk 0:03:04.7]}
11... Bd7 {[%clk 0:02:40.6]} 12. Rb1 {[%clk 0:03:03]} 12... a5 {[%clk 0:02:32]}
13. f3 {[%clk 0:03:01.8]} 13... h5 {[%clk 0:01:47.6]} 14. Be3 {[%clk 0:02:42.7]}
14... a4 {[%clk 0:01:46.7]} 15. b4 {[%clk 0:02:34.4]} 15... axb3 {[%clk
0:01:47.6]} 16. axb3 {[%clk 0:02:35.3]} 16... c6 {[%clk 0:01:39.8]} 17. Qd2
{[%clk 0:02:11.9]} 17... Nh7 {[%clk 0:01:27.4]} 18. h4 {[%clk 0:02:04.2]} 18...
Nf8 {[%clk 0:01:21.7]} 19. Red1 {[%clk 0:01:57.2]} 19... Qc7 {[%clk 0:01:14.6]}
20. Nde2 {[%clk 0:01:43.8]} 20... Ra3 {[%clk 0:01:12.7]} 21. b4 {[%clk
0:01:08.6]} 21... Nce6 {[%clk 0:01:12.7]} 22. Rbc1 {[%clk 0:00:54.8]} 22... Rb3
{[%clk 0:01:12.6]} 23. Nd5 {[%clk 0:00:39.7]} 23... Qb8 {[%clk 0:00:57.7]} 24.
Nb6 {[%clk 0:00:39.2]} 24... Bc8 {[%clk 0:00:55.3]} 25. Rb1 {[%clk 0:00:31.3]}
25... Ra3 {[%clk 0:00:48.4]} 26. Bf2 {[%clk 0:00:29.3]} 26... Rd8 {[%clk
0:00:47.8]} 27. Qc2 {[%clk 0:00:20.4]} 27... Qc7 {[%clk 0:00:41.8]} 28. Rd3
{[%clk 0:00:20.2]} 28... Rxd3 {[%clk 0:00:37.4]} 29. Qxd3 {[%clk 0:00:21.1]}
29... Nd7 {[%clk 0:00:36.4]} 30. Nxc8 {[%clk 0:00:21.4]} 30... Rxc8 {[%clk
0:00:35.5]} 31. f4 {[%clk 0:00:21.6]} 31... Nf6 {[%clk 0:00:34.3]} 32. Rd1
{[%clk 0:00:21]} 32... Bf8 {[%clk 0:00:26.1]} 33. Bh3 {[%clk 0:00:20.7]} 33...
Re8 {[%clk 0:00:25.3]} 34. Nc3 {[%clk 0:00:15.9]} 34... Ng4 {[%clk 0:00:21.8]}
35. Bxg4 {[%clk 0:00:15.8]} 35... hxg4 {[%clk 0:00:22.7]} 36. Na4 {[%clk
0:00:12.5]} 36... Ra8 {[%clk 0:00:19]} 37. Bb6 {[%clk 0:00:09.6]} 37... Qe7
{[%clk 0:00:17.7]} 38. Nc3 {[%clk 0:00:10]} 38... Ra3 {[%clk 0:00:16.1]} 39. Qd2
{[%clk 0:00:03.7]} 39... Qf6 {[%clk 0:00:10]} 40. Ne2 {[%clk 0:00:04.4]} 40...
Rb3 {[%clk 0:00:09.8]} 41. Rc1 {[%clk 0:00:03]} 41... Qb2 {[%clk 0:00:08.5]} 42.
Qxb2 {[%clk 0:00:03]} 42... Rxb2 {[%clk 0:00:09.4]} 43. Nd4 {[%clk 0:00:03.3]}
43... Rxb4 {[%clk 0:00:08.7]} 44. Nxe6 {[%clk 0:00:03.7]} 44... fxe6 {[%clk
0:00:08.5]} 45. Be3 {[%clk 0:00:03.2]} 45... Kf7 {[%clk 0:00:08.3]} 46. Rc2
{[%clk 0:00:02.9]} 46... Bg7 {[%clk 0:00:06.1]} 47. Kf2 {[%clk 0:00:03.3]} 47...
Rb2 {[%clk 0:00:06]} 48. Rxb2 {[%clk 0:00:03.2]} 48... Bxb2 {[%clk 0:00:06.9]}
49. Ke2 {[%clk 0:00:04.1]} 49... d5 {[%clk 0:00:05.7]} 50. exd5 {[%clk 0:00:03]}
50... exd5 {[%clk 0:00:05.9]} 51. cxd5 {[%clk 0:00:03.9]} 51... cxd5 {[%clk
0:00:06.8]} 52. Kd3 {[%clk 0:00:04.8]} 52... Ke6 {[%clk 0:00:06.8]} 53. Bc5
{[%clk 0:00:05]} 53... b5 {[%clk 0:00:06.2]} 54. Bb4 {[%clk 0:00:05.2]} 54...
Bf6 {[%clk 0:00:06]} 55. Bd2 {[%clk 0:00:03.2]} 55... Bd8 {[%clk 0:00:04.9]} 56.
Bb4 {[%clk 0:00:03.2]} 56... Bb6 {[%clk 0:00:05]} 57. Be1 {[%clk 0:00:04.1]}
57... Bc5 {[%clk 0:00:05.2]} 58. Bc3 {[%clk 0:00:04.1]} 58... Bf2 {[%clk
0:00:05.3]} 0-1

[Event "*** Titled Tuesday Blitz"]
[Site "Chess.com"]
[Date "2020.04.14"]
[Round "5"]
[White "CaspiIsrael"]
[Black "I_like_Kasparov"]
[Result "1-0"]
[WhiteElo "2540"]
[BlackElo "2364"]
[TimeControl "180+1"]
[EndTime "10:52:03 PDT"]
[Termination "CaspiIsrael won by checkmate"]

1. e4 {[%clk 0:03:00.9]} 1... c5 {[%clk 0:02:59.4]} 2. Nf3 {[%clk 0:02:58.5]}
2... e6 {[%clk 0:02:59.9]} 3. d4 {[%clk 0:02:57.1]} 3... cxd4 {[%clk 0:03:00.8]}
4. Nxd4 {[%clk 0:02:57.5]} 4... a6 {[%clk 0:03:01.7]} 5. Nc3 {[%clk 0:02:53.1]}
5... Qc7 {[%clk 0:03:01.2]} 6. Bd3 {[%clk 0:02:52.4]} 6... Nf6 {[%clk
0:03:01.5]} 7. O-O {[%clk 0:02:51.7]} 7... Be7 {[%clk 0:03:02.1]} 8. Qe2 {[%clk
0:02:36.5]} 8... d6 {[%clk 0:03:01.8]} 9. f4 {[%clk 0:02:27.3]} 9... Nbd7 {[%clk
0:03:01.3]} 10. Bd2 {[%clk 0:02:14]} 10... g6 {[%clk 0:02:55.3]} 11. Kh1 {[%clk
0:02:03.2]} 11... e5 {[%clk 0:02:41.3]} 12. fxe5 {[%clk 0:01:42.3]} 12... Nxe5
{[%clk 0:02:31]} 13. Bg5 {[%clk 0:01:23.7]} 13... Qd8 {[%clk 0:02:01.8]} 14. Bh6
{[%clk 0:00:49.7]} 14... Neg4 {[%clk 0:01:50.2]} 15. Bd2 {[%clk 0:00:36]} 15...
O-O {[%clk 0:01:47.4]} 16. h3 {[%clk 0:00:32.4]} 16... Nh5 {[%clk 0:01:43.1]}
17. Be1 {[%clk 0:00:23]} 17... Ne5 {[%clk 0:01:35.1]} 18. Nd5 {[%clk 0:00:22.8]}
18... Bh4 {[%clk 0:01:33]} 19. Bxh4 {[%clk 0:00:18.9]} 19... Qxh4 {[%clk
0:01:32.1]} 20. Qf2 {[%clk 0:00:14.6]} 20... Ng3+ {[%clk 0:01:00.4]} 21. Kg1
{[%clk 0:00:14.4]} 21... Ng4 {[%clk 0:01:00.5]} 22. Nf6+ {[%clk 0:00:09]} 22...
Nxf6 {[%clk 0:00:57]} 23. Qxf6 {[%clk 0:00:09.9]} 23... Qxf6 {[%clk 0:00:56.3]}
24. Rxf6 {[%clk 0:00:10.5]} 24... Re8 {[%clk 0:00:48.9]} 25. Rxd6 {[%clk
0:00:10]} 25... b5 {[%clk 0:00:46.6]} 26. Re1 {[%clk 0:00:09.8]} 26... Bb7
{[%clk 0:00:45.9]} 27. e5 {[%clk 0:00:06.8]} 27... Re7 {[%clk 0:00:43.8]} 28.
Kf2 {[%clk 0:00:06.6]} 28... Nh5 {[%clk 0:00:41.1]} 29. Be4 {[%clk 0:00:06.6]}
29... Bxe4 {[%clk 0:00:39.9]} 30. Rxe4 {[%clk 0:00:07.5]} 30... Rae8 {[%clk
0:00:40.7]} 31. Nf3 {[%clk 0:00:07.1]} 31... Ra7 {[%clk 0:00:37.5]} 32. g4
{[%clk 0:00:06.8]} 32... Ng7 {[%clk 0:00:36.8]} 33. c3 {[%clk 0:00:07.3]} 33...
Ne6 {[%clk 0:00:36.8]} 34. Nd4 {[%clk 0:00:05]} 34... Nc5 {[%clk 0:00:36.8]} 35.
Re3 {[%clk 0:00:05.5]} 35... Rxe5 {[%clk 0:00:35.1]} 36. Rxe5 {[%clk 0:00:05.1]}
36... Nd3+ {[%clk 0:00:35.7]} 37. Ke3 {[%clk 0:00:05.6]} 37... Nxe5 {[%clk
0:00:36.6]} 38. Ke4 {[%clk 0:00:06]} 38... Nc4 {[%clk 0:00:36.3]} 39. Rd8+
{[%clk 0:00:06.1]} 39... Kg7 {[%clk 0:00:36.9]} 40. b3 {[%clk 0:00:07]} 40...
Re7+ {[%clk 0:00:33.2]} 41. Kd3 {[%clk 0:00:06.9]} 41... Re3+ {[%clk 0:00:32.8]}
42. Kc2 {[%clk 0:00:06.8]} 42... Na3+ {[%clk 0:00:28.9]} 43. Kb2 {[%clk
0:00:06.2]} 43... b4 {[%clk 0:00:24.9]} 44. cxb4 {[%clk 0:00:07.1]} 44... Nb5
{[%clk 0:00:24.4]} 45. Nxb5 {[%clk 0:00:07.4]} 45... axb5 {[%clk 0:00:25.3]} 46.
a4 {[%clk 0:00:07.9]} 46... bxa4 {[%clk 0:00:19.8]} 47. bxa4 {[%clk 0:00:08.8]}
47... Rxh3 {[%clk 0:00:20.7]} 48. a5 {[%clk 0:00:09.3]} 48... Rg3 {[%clk
0:00:19.5]} 49. a6 {[%clk 0:00:09]} 49... Rxg4 {[%clk 0:00:19.9]} 50. Kb3 {[%clk
0:00:09.3]} 50... Rg1 {[%clk 0:00:19.7]} 51. a7 {[%clk 0:00:09]} 51... Ra1
{[%clk 0:00:20.1]} 52. a8=Q {[%clk 0:00:09.9]} 52... Rxa8 {[%clk 0:00:19.5]} 53.
Rxa8 {[%clk 0:00:10.8]} 53... h5 {[%clk 0:00:20.4]} 54. b5 {[%clk 0:00:11.1]}
54... h4 {[%clk 0:00:21.1]} 55. b6 {[%clk 0:00:11.6]} 55... h3 {[%clk 0:00:22]}
56. b7 {[%clk 0:00:12]} 56... h2 {[%clk 0:00:22.9]} 57. Ra1 {[%clk 0:00:12.5]}
57... g5 {[%clk 0:00:21.3]} 58. b8=Q {[%clk 0:00:12.7]} 58... g4 {[%clk
0:00:22.2]} 59. Qxh2 {[%clk 0:00:12.5]} 59... Kg6 {[%clk 0:00:22.5]} 60. Qf4
{[%clk 0:00:12.4]} 60... f5 {[%clk 0:00:23.4]} 61. Ra6+ {[%clk 0:00:12.5]} 61...
Kh5 {[%clk 0:00:23.9]} 62. Rh6# {[%clk 0:00:11.9]} 1-0

[Event "*** Titled Tuesday Blitz"]
[Site "Chess.com"]
[Date "2020.04.14"]
[Round "5"]
[White "FrogMist"]
[Black "Misticpikachu"]
[Result "0-1"]
[WhiteElo "2466"]
[BlackElo "2307"]
[TimeControl "180+1"]
[EndTime "10:52:04 PDT"]
[Termination "Misticpikachu won by checkmate"]

1. e4 {[%clk 0:03:00.9]} 1... c5 {[%clk 0:02:58.1]} 2. Nf3 {[%clk 0:03:00.9]}
2... Nc6 {[%clk 0:02:57.4]} 3. Bb5 {[%clk 0:03:00.7]} 3... e6 {[%clk 0:02:55.8]}
4. O-O {[%clk 0:03:00.2]} 4... Nge7 {[%clk 0:02:55.9]} 5. Re1 {[%clk 0:03:00.6]}
5... a6 {[%clk 0:02:55.3]} 6. Bf1 {[%clk 0:03:00.6]} 6... d5 {[%clk 0:02:53.8]}
7. exd5 {[%clk 0:03:01.1]} 7... Nxd5 {[%clk 0:02:54.7]} 8. d4 {[%clk 0:03:00.5]}
8... Nf6 {[%clk 0:02:54.6]} 9. c3 {[%clk 0:02:36.7]} 9... Be7 {[%clk 0:02:51.8]}
10. Be3 {[%clk 0:02:33.9]} 10... cxd4 {[%clk 0:02:50.9]} 11. Nxd4 {[%clk
0:02:32.5]} 11... Nxd4 {[%clk 0:02:50.9]} 12. Qxd4 {[%clk 0:02:29.7]} 12... O-O
{[%clk 0:02:50.3]} 13. Nd2 {[%clk 0:02:27]} 13... Qxd4 {[%clk 0:02:43.9]} 14.
Bxd4 {[%clk 0:02:27.9]} 14... Bd7 {[%clk 0:02:44.3]} 15. a4 {[%clk 0:02:22.9]}
15... Bc6 {[%clk 0:02:40.7]} 16. Nc4 {[%clk 0:02:20.3]} 16... Nd5 {[%clk
0:02:24.2]} 17. Na5 {[%clk 0:02:16.9]} 17... Bf6 {[%clk 0:02:04.3]} 18. Nxc6
{[%clk 0:02:09.5]} 18... bxc6 {[%clk 0:02:05.2]} 19. Bc5 {[%clk 0:02:08.7]}
19... Rfd8 {[%clk 0:02:05.1]} 20. Rad1 {[%clk 0:02:07.9]} 20... a5 {[%clk
0:01:18.6]} 21. g3 {[%clk 0:01:50.1]} 21... Rab8 {[%clk 0:01:15.8]} 22. Ba3
{[%clk 0:01:47.9]} 22... Nb6 {[%clk 0:01:07.8]} 23. Rxd8+ {[%clk 0:01:43.1]}
23... Rxd8 {[%clk 0:01:07.4]} 24. Bg2 {[%clk 0:01:38.1]} 24... Nc4 {[%clk
0:00:45.5]} 25. Bc5 {[%clk 0:01:01.4]} 25... Nxb2 {[%clk 0:00:41.6]} 26. Bb6
{[%clk 0:01:01.3]} 26... Bxc3 {[%clk 0:00:36.8]} 27. Rc1 {[%clk 0:00:46.2]}
27... Rd1+ {[%clk 0:00:34.8]} 28. Rxd1 {[%clk 0:00:46.5]} 28... Nxd1 {[%clk
0:00:35.7]} 29. Bxc6 {[%clk 0:00:46.9]} 29... Bb4 {[%clk 0:00:33.7]} 30. Kf1
{[%clk 0:00:45]} 30... Nc3 {[%clk 0:00:33.6]} 31. Kg2 {[%clk 0:00:35.9]} 31...
Kf8 {[%clk 0:00:33.8]} 32. h4 {[%clk 0:00:34.5]} 32... f6 {[%clk 0:00:32.9]} 33.
h5 {[%clk 0:00:32]} 33... Nd5 {[%clk 0:00:32.3]} 34. Bd4 {[%clk 0:00:28.2]}
34... Ke7 {[%clk 0:00:31.6]} 35. Kf3 {[%clk 0:00:25.6]} 35... g6 {[%clk
0:00:22.6]} 36. h6 {[%clk 0:00:22.2]} 36... Kd6 {[%clk 0:00:17.8]} 37. Bxd5
{[%clk 0:00:21]} 37... Kxd5 {[%clk 0:00:09.2]} 38. Bxf6 {[%clk 0:00:21.9]} 38...
e5 {[%clk 0:00:07.6]} 39. Kg4 {[%clk 0:00:18.2]} 39... Ke6 {[%clk 0:00:07.9]}
40. Bd8 {[%clk 0:00:16.5]} 40... Bf8 {[%clk 0:00:07.2]} 41. Bg5 {[%clk
0:00:13.5]} 41... Kd5 {[%clk 0:00:05.5]} 42. f4 {[%clk 0:00:11.7]} 42... e4
{[%clk 0:00:04.6]} 43. f5 {[%clk 0:00:11.2]} 43... gxf5+ {[%clk 0:00:05]} 44.
Kxf5 {[%clk 0:00:12]} 44... Kd4 {[%clk 0:00:04.6]} 45. Kf6 {[%clk 0:00:11.5]}
45... e3 {[%clk 0:00:04.2]} 46. Kf7 {[%clk 0:00:11.4]} 46... e2 {[%clk 0:00:03]}
47. Bf6+ {[%clk 0:00:05.2]} 47... Kd3 {[%clk 0:00:02.8]} 48. Kxf8 {[%clk
0:00:05]} 48... e1=Q {[%clk 0:00:02.8]} 49. Kg8 {[%clk 0:00:02.1]} 49... Qxg3+
{[%clk 0:00:03.3]} 50. Bg7 {[%clk 0:00:03]} 50... Qg6 {[%clk 0:00:02.2]} 51. Kh8
{[%clk 0:00:03]} 51... Kc4 {[%clk 0:00:03.1]} 52. Kg8 {[%clk 0:00:03.1]} 52...
Kb3 {[%clk 0:00:04]} 53. Kh8 {[%clk 0:00:04]} 53... Kxa4 {[%clk 0:00:04.9]} 54.
Kg8 {[%clk 0:00:04.4]} 54... Kb3 {[%clk 0:00:05.8]} 55. Kh8 {[%clk 0:00:05]}
55... a4 {[%clk 0:00:06.4]} 56. Bb2 {[%clk 0:00:04.5]} 56... Qe8+ {[%clk
0:00:04.9]} 57. Kxh7 {[%clk 0:00:04.9]} 57... Kxb2 {[%clk 0:00:05.2]} 58. Kg7
{[%clk 0:00:05.5]} 58... Qe7+ {[%clk 0:00:05.6]} 59. Kh8 {[%clk 0:00:05.2]}
59... a3 {[%clk 0:00:06.5]} 60. h7 {[%clk 0:00:05.8]} 60... Qf8# {[%clk
0:00:06.7]} 0-1

[Event "*** Titled Tuesday Blitz"]
[Site "Chess.com"]
[Date "2020.04.14"]
[Round "5"]
[White "K_A_S_T_O_R"]
[Black "Rodalquilar"]
[Result "1-0"]
[WhiteElo "2832"]
[BlackElo "2622"]
[TimeControl "180+1"]
[EndTime "10:52:05 PDT"]
[Termination "K_A_S_T_O_R won on time"]

1. e4 {[%clk 0:03:00.9]} 1... d5 {[%clk 0:03:00.1]} 2. exd5 {[%clk 0:03:00.2]}
2... Qxd5 {[%clk 0:03:01]} 3. Nc3 {[%clk 0:03:00.1]} 3... Qa5 {[%clk 0:03:01.3]}
4. g3 {[%clk 0:03:00.2]} 4... Nf6 {[%clk 0:03:00.2]} 5. Bg2 {[%clk 0:03:00.6]}
5... e5 {[%clk 0:03:00.6]} 6. h3 {[%clk 0:02:56.5]} 6... Bd6 {[%clk 0:03:00.2]}
7. d3 {[%clk 0:02:56.1]} 7... c6 {[%clk 0:02:58.3]} 8. Bd2 {[%clk 0:02:56.5]}
8... Qc7 {[%clk 0:02:57.1]} 9. Nf3 {[%clk 0:02:57]} 9... O-O {[%clk 0:02:55.8]}
10. O-O {[%clk 0:02:57.4]} 10... h6 {[%clk 0:02:53.3]} 11. Re1 {[%clk
0:02:55.6]} 11... Bf5 {[%clk 0:02:53.2]} 12. Nh4 {[%clk 0:02:49.8]} 12... Bh7
{[%clk 0:02:51.1]} 13. Qf3 {[%clk 0:02:48.7]} 13... Nbd7 {[%clk 0:02:47.6]} 14.
Nf5 {[%clk 0:02:49]} 14... Rfe8 {[%clk 0:02:09.1]} 15. Nxd6 {[%clk 0:02:45.4]}
15... Qxd6 {[%clk 0:02:10]} 16. Rad1 {[%clk 0:02:45.8]} 16... Rad8 {[%clk
0:02:05.5]} 17. a3 {[%clk 0:02:45.4]} 17... Nc5 {[%clk 0:02:00.4]} 18. Be3
{[%clk 0:02:18.5]} 18... a5 {[%clk 0:01:44.5]} 19. g4 {[%clk 0:02:02.7]} 19...
Ne6 {[%clk 0:01:40.3]} 20. Qg3 {[%clk 0:01:59.5]} 20... Nd4 {[%clk 0:01:36.2]}
21. Bxd4 {[%clk 0:01:58.3]} 21... exd4 {[%clk 0:01:24.8]} 22. Rxe8+ {[%clk
0:01:54.3]} 22... Nxe8 {[%clk 0:01:24.7]} 23. Qxd6 {[%clk 0:01:52.5]} 23... Nxd6
{[%clk 0:01:23.9]} 24. Na4 {[%clk 0:01:46.4]} 24... Re8 {[%clk 0:01:17]} 25. Kf1
{[%clk 0:01:45.4]} 25... Kf8 {[%clk 0:00:55.1]} 26. Re1 {[%clk 0:01:41.9]} 26...
Rxe1+ {[%clk 0:00:55.1]} 27. Kxe1 {[%clk 0:01:41.6]} 27... Ke7 {[%clk 0:00:55]}
28. f4 {[%clk 0:01:30.7]} 28... f5 {[%clk 0:00:44.8]} 29. Nc5 {[%clk 0:01:19.1]}
29... fxg4 {[%clk 0:00:32.7]} 30. hxg4 {[%clk 0:01:19]} 30... g5 {[%clk
0:00:32.3]} 31. fxg5 {[%clk 0:01:14.9]} 31... hxg5 {[%clk 0:00:32.5]} 32. Nb3
{[%clk 0:01:14.5]} 32... a4 {[%clk 0:00:16.6]} 33. Nxd4 {[%clk 0:01:14.5]} 33...
Nf7 {[%clk 0:00:17.5]} 34. Nf3 {[%clk 0:01:06.4]} 34... Kf6 {[%clk 0:00:17.4]}
35. Kf2 {[%clk 0:01:05.7]} 35... Ne5 {[%clk 0:00:17.9]} 36. Nxe5 {[%clk
0:01:04.3]} 36... Kxe5 {[%clk 0:00:18.8]} 37. Ke3 {[%clk 0:01:04.8]} 37... Bg8
{[%clk 0:00:18.7]} 38. d4+ {[%clk 0:00:57.6]} 38... Kd6 {[%clk 0:00:18.7]} 39.
Bf3 {[%clk 0:00:57.3]} 39... Bh7 {[%clk 0:00:17]} 40. c4 {[%clk 0:00:56.6]}
40... b6 {[%clk 0:00:16.1]} 41. Be4 {[%clk 0:00:54.7]} 41... Bg8 {[%clk
0:00:15.7]} 42. Kd3 {[%clk 0:00:54.8]} 42... Be6 {[%clk 0:00:13.1]} 43. Bf3
{[%clk 0:00:55]} 43... c5 {[%clk 0:00:12.2]} 44. Kc3 {[%clk 0:00:54.3]} 44...
Bd7 {[%clk 0:00:11.6]} 45. Bd1 {[%clk 0:00:53.6]} 45... Bc8 {[%clk 0:00:09.7]}
46. Kd3 {[%clk 0:00:42.3]} 46... Bd7 {[%clk 0:00:09.4]} 47. Ke4 {[%clk
0:00:41.7]} 47... Bc8 {[%clk 0:00:09.7]} 48. d5 {[%clk 0:00:37.6]} 48... Bd7
{[%clk 0:00:08.2]} 49. Bf3 {[%clk 0:00:36.6]} 49... Bc8 {[%clk 0:00:06.8]} 50.
Be2 {[%clk 0:00:36.6]} 50... Bd7 {[%clk 0:00:07]} 51. Bd1 {[%clk 0:00:36.7]}
51... Bc8 {[%clk 0:00:07.3]} 52. Bxa4 {[%clk 0:00:35.4]} 52... Bxg4 {[%clk
0:00:07.1]} 53. Bc2 {[%clk 0:00:33.8]} 53... Be2 {[%clk 0:00:03.9]} 54. Bd3
{[%clk 0:00:33.4]} 54... Bd1 {[%clk 0:00:03.3]} 55. Kf5 {[%clk 0:00:31.7]} 55...
g4 {[%clk 0:00:03.7]} 56. Kf4 {[%clk 0:00:31]} 56... b5 {[%clk 0:00:03.9]} 57.
cxb5 {[%clk 0:00:29.4]} 57... Kxd5 {[%clk 0:00:04.4]} 58. Be4+ {[%clk
0:00:27.6]} 58... Kd6 {[%clk 0:00:03.8]} 59. b6 {[%clk 0:00:26.3]} 59... c4
{[%clk 0:00:01.8]} 60. Kg3 {[%clk 0:00:21.2]} 60... Be2 {[%clk 0:00:02.3]} 61.
a4 {[%clk 0:00:20.1]} 61... Bd1 {[%clk 0:00:02.2]} 62. a5 {[%clk 0:00:20]} 62...
Be2 {[%clk 0:00:03.1]} 63. Kf4 {[%clk 0:00:19.6]} 63... Bd1 {[%clk 0:00:03.2]}
64. a6 {[%clk 0:00:19.5]} 1-0